[Event "21st Dubai Open 2019"]
[Site "Dubai"]
[Date "2019.04.06"]
[Round "6.26"]
[White "Laxman, R.R."]
[Black "Poormosavi, Seyed Kian"]
[Result "1-0"]
[ECO "A46"]
[WhiteElo "2428"]
[BlackElo "2260"]
[Annotator "NA"]
[PlyCount "93"]
[EventDate "2019.04.01"]
[EventType "swiss"]
[EventCountry "UAE"]
[SourceTitle "playchess.com"]
[Source "ChessBase"]
[SourceQuality "1"]
[TimeControl "5400+30"]

1. d4 {[%emt 0:00:00]} Nf6 {[%emt 0:00:00]} 2. Nf3 {[%emt 0:00:00]} e6 {[%emt 0:00:08]} 3. c4 {[%emt 0:00:00]} d5 {[%emt 0:00:12]} 4. e3 {[%emt 0:00:00]} Be7 {[%emt 0:03:12]} 5. Nc3 {[%emt 0:00:12]} O-O {[%emt 0:01:53]} 6. Bd3 {[%emt 0:00:06]} dxc4 {[%emt 0:09:41]} 7. Bxc4 {[%emt 0:00:12]} c5 {[%emt 0:00:17]} 8. O-O {[%emt 0:00:21]} Nc6 {[%emt 0:00:51]} 9. a3 {[%emt 0:01:48]} b6 {[%emt 0:13:47]} 10. dxc5 {[%emt 0:06:02]} Bxc5 {[%emt 0:06:17]} 11. b4 {[%emt 0:00:21]} Bd6 {[%emt 0:09:27]} 12. Bb2 {[%emt 0:02:07]} a6 {[%emt 0:10:32]} 13. Ne2 {[%emt 0:11:30]} Bb7 {[%emt 0:08:11]} 14. Rc1 {[%emt 0:03:24]} Qe7 {[%emt 0:08:02]} 15. Ng3 {[%emt 0:00:13]} Ng4 {[%emt 0:17:08]} 16. Bd3 {[%emt 0:09:12]} Nge5 {[%emt 0:02:01]} 17. Nxe5 {[%emt 0:00:14]} Nxe5 {[%emt 0:03:06]} 18. Bxe5 {[%emt 0:00:14]} Bxe5 {[%emt 0:00:02]} 19. Bxh7+ {[%emt 0:00:12]} Kxh7 {[%emt 0:00:11]} 20. Qh5+ {[%emt 0:00:02]} Kg8 {[%emt 0:00:07]} 21. Qxe5 {[%emt 0:00:06]} Rac8 {[%emt 0:00:36]} 22. e4 {[%emt 0:01:21]} Qd7 {[%emt 0:01:05]} 23. Rcd1 {[%emt 0:00:32]} Qc7 {[%emt 0:01:47]} 24. Qg5 {[%emt 0:01:00]} f6 {[%emt 0:00:44]} 25. Qg4 {[%emt 0:00:06]} Qe7 {[%emt 0:00:17]} 26. Rc1 {[%emt 0:02:08]} f5 {[%emt 0:02:34]} 27. exf5 {[%emt 0:00:10]} exf5 {[%emt 0:00:02]} 28. Qf4 {[%emt 0:00:19]} g6 {[%emt 0:00:19]} 29. h4 {[%emt 0:00:35]} Qf6 {[%emt 0:01:24]} 30. f3 {[%emt 0:00:43]} Rcd8 {[%emt 0:00:32]} 31. Rfd1 {[%emt 0:00:53]} Rf7 {[%emt 0:00:28]} 32. Rxd8+ Qxd8 {[%emt 0:00:01]} 33. Qg5 {[%emt 0:03:26]} Qxg5 {[%emt 0:01:04]} 34. hxg5 {[%emt 0:00:02]} Rd7 {[%emt 0:00:13]} 35. Ne2 {[%emt 0:00:12]} Kf7 {[%emt 0:00:14]} 36. Nf4 {[%emt 0:00:09]} Bd5 {[%emt 0:00:54]} 37. Kh2 {[%emt 0:00:41]} b5 {[%emt 0:00:17]} 38. Rd1 {[%emt 0:00:12]} Be6 {[%emt 0:00:16]} 39. Rxd7+ {[%emt 0:00:04]} Bxd7 {[%emt 0:00:01]} 40. Kg3 {[%emt 0:00:09]} Be8 {[%emt 0:00:56]} 41. Kf2 {[%emt 0:00:06]} Ke7 {[%emt 0:00:06]} 42. Ke3 {[%emt 0:00:04]} Kd7 {[%emt 0:00:38]} 43. Kd4 {[%emt 0:00:04]} Kd6 {[%emt 0:00:05]} 44. g3 {[%emt 0:00:09]} Bc6 {[%emt 0:00:17]} 45. Nxg6 {[%emt 0:00:00]} Bxf3 {[%emt 0:00:00]} 46. Nh4 {[%emt 0:00:03]} Be4 {[%emt 0:00:31]} 47. g4 {[%emt 0:00:09]} 1-0

[Event "21st Dubai Open 2019"]
[Site "Dubai"]
[Date "2019.04.06"]
[Round "6.28"]
[White "Manush Shah"]
[Black "Raahul V S"]
[Result "0-1"]
[ECO "A48"]
[WhiteElo "2405"]
[BlackElo "2252"]
[Annotator "NA"]
[PlyCount "120"]
[EventDate "2019.04.01"]
[EventType "swiss"]
[EventCountry "UAE"]
[SourceTitle "playchess.com"]
[Source "ChessBase"]
[SourceQuality "1"]
[TimeControl "5400+30"]

1. d4 {[%emt 0:01:12]} Nf6 {[%emt 0:00:00]} 2. Nf3 {[%emt 0:01:18]} g6 {[%emt 0:00:00]} 3. Nc3 {[%emt 0:00:04]} d5 {[%emt 0:00:00]} 4. Bf4 {[%emt 0:00:07]} Bg7 {[%emt 0:00:00]} 5. e3 {[%emt 0:00:06]} O-O {[%emt 0:00:00]} 6. Be2 {[%emt 0:00:03]} c6 {[%emt 0:00:04]} 7. h4 {[%emt 0:00:12]} Qa5 {[%emt 0:00:22]} 8. Nd2 {[%emt 0:07:47]} h5 {[%emt 0:05:13]} 9. Rb1 {[%emt 0:04:00]} Nbd7 {[%emt 0:00:52]} 10. b4 {[%emt 0:00:30]} Qd8 {[%emt 0:00:05]} 11. e4 {[%emt 0:14:08]} dxe4 {[%emt 0:03:22]} 12. Ndxe4 {[%emt 0:00:45]} Nxe4 {[%emt 0:05:00]} 13. Nxe4 {[%emt 0:00:04]} Nb6 {[%emt 0:00:14]} 14. c3 {[%emt 0:06:28]} Bf5 {[%emt 0:03:19]} 15. Bf3 {[%emt 0:07:26]} Nd5 {[%emt 0:01:11]} 16. Qd2 {[%emt 0:04:18]} Nxf4 {[%emt 0:03:25]} 17. Qxf4 {[%emt 0:00:11]} e5 {[%emt 0:01:04]} 18. dxe5 {[%emt 0:03:41]} Bxe5 {[%emt 0:00:59]} 19. Qe3 {[%emt 0:07:52]} Re8 {[%emt 0:00:39]} 20. Rd1 {[%emt 0:00:53]} Qe7 {[%emt 0:00:17]} 21. Kf1 {[%emt 0:01:00]} Qe6 {[%emt 0:03:22]} 22. Ng3 {[%emt 0:05:18]} Bxg3 {[%emt 0:01:21]} 23. Qxe6 {[%emt 0:04:56]} Bxe6 {[%emt 0:00:02]} 24. fxg3 {[%emt 0:00:12]} Bxa2 {[%emt 0:00:15]} 25. Rd7 {[%emt 0:05:54]} Rab8 {[%emt 0:00:54]} 26. Kf2 {[%emt 0:01:16]} Be6 {[%emt 0:00:11]} 27. Rd4 {[%emt 0:01:32]} Red8 {[%emt 0:04:16]} 28. Rhd1 {[%emt 0:00:20]} Rxd4 {[%emt 0:00:06]} 29. Rxd4 {[%emt 0:00:09]} Kf8 {[%emt 0:04:43]} 30. g4 {[%emt 0:01:48]} hxg4 {[%emt 0:00:04]} 31. Bxg4 {[%emt 0:00:04]} Bxg4 {[%emt 0:00:07]} 32. Rxg4 {[%emt 0:00:04]} Rc8 {[%emt 0:03:00]} 33. Ke3 {[%emt 0:01:57]} a6 {[%emt 0:02:32]} 34. Kd4 {[%emt 0:02:35]} b6 {[%emt 0:00:02]} 35. Kc4 {[%emt 0:05:32]} Rd8 {[%emt 0:00:34]} 36. Rf4 {[%emt 0:02:09]} Kg7 {[%emt 0:00:22]} 37. Rf2 {[%emt 0:01:34]} Rd5 {[%emt 0:01:28]} 38. Ra2 {[%emt 0:01:50]} a5 {[%emt 0:01:01]} 39. bxa5 {[%emt 0:00:07]} Rc5+ {[%emt 0:02:46]} 40. Kb4 {[%emt 0:01:33]} Rb5+ {[%emt 0:00:01]} 41. Kc4 {[%emt 0:00:03]} bxa5 {[%emt 0:00:02]} 42. Rd2 {[%emt 0:00:47]} Rb6 {[%emt 0:01:27]} 43. Kc5 {[%emt 0:02:21]} Ra6 {[%emt 0:00:06]} 44. Ra2 {[%emt 0:00:25]} a4 {[%emt 0:02:51]} 45. Ra3 {[%emt 0:02:17]} Kf6 {[%emt 0:14:15]} 46. c4 {[%emt 0:03:16]} Kf5 {[%emt 0:00:57]} 47. Kd6 {[%emt 0:00:30]} Ke4 {[%emt 0:00:16]} 48. Kc7 {[%emt 0:01:04]} c5 {[%emt 0:02:58]} 49. Kb7 {[%emt 0:01:12]} Re6 {[%emt 0:00:10]} 50. Rxa4 {[%emt 0:00:27]} Kd4 {[%emt 0:00:13]} 51. g4 {[%emt 0:00:34]} Re4 {[%emt 0:03:19]} 52. h5 {[%emt 0:00:05]} Rxg4 {[%emt 0:00:08]} 53. hxg6 {[%emt 0:00:05]} Rxg6 {[%emt 0:00:05]} 54. Ra1 {[%emt 0:00:28]} f5 {[%emt 0:00:15]} 55. Rf1 {[%emt 0:00:03]} Rf6 {[%emt 0:00:04]} 56. Kc7 {[%emt 0:00:11]} f4 {[%emt 0:00:19]} 57. Kd7 {[%emt 0:00:02]} f3 {[%emt 0:00:02]} 58. Ke7 {[%emt 0:00:05]} Rf4 {[%emt 0:00:05]} 59. Ke6 {[%emt 0:00:05]} f2 {[%emt 0:00:03]} 60. Kd6 {[%emt 0:00:04]} Kxc4 {[%emt 0:00:44]} 0-1

[Event "21st Dubai Open 2019"]
[Site "Dubai"]
[Date "2019.04.06"]
[Round "6.29"]
[White "Nitin, S.."]
[Black "Jeet, Jain"]
[Result "1-0"]
[ECO "A08"]
[WhiteElo "2400"]
[BlackElo "2219"]
[Annotator "NA"]
[PlyCount "97"]
[EventDate "2019.04.01"]
[EventType "swiss"]
[EventCountry "UAE"]
[SourceTitle "playchess.com"]
[Source "ChessBase"]
[SourceQuality "1"]
[TimeControl "5400+30"]

1. Nf3 {[%emt 0:00:05]} d5 {[%emt 0:00:00]} 2. g3 {[%emt 0:00:08]} c5 {[%emt 0:00:00]} 3. Bg2 {[%emt 0:00:15]} Nc6 {[%emt 0:00:02]} 4. O-O {[%emt 0:00:08]} e5 {[%emt 0:00:15]} 5. d3 {[%emt 0:00:08]} Be7 {[%emt 0:00:18]} 6. e4 {[%emt 0:01:53]} d4 {[%emt 0:02:42]} 7. Na3 {[%emt 0:01:47]} h5 {[%emt 0:05:01]} 8. c3 {[%emt 0:05:21]} h4 {[%emt 0:03:06]} 9. Nc4 {[%emt 0:02:08]} Qc7 {[%emt 0:07:25]} 10. cxd4 {[%emt 0:06:16]} cxd4 {[%emt 0:04:38]} 11. Qb3 {[%emt 0:00:35]} Be6 {[%emt 0:02:54]} 12. Bd2 {[%emt 0:01:39]} Rb8 {[%emt 0:04:52]} 13. a4 {[%emt 0:03:52]} Nh6 {[%emt 0:06:24]} 14. a5 {[%emt 0:23:49]} hxg3 {[%emt 0:06:17]} 15. hxg3 {[%emt 0:01:00]} f6 {[%emt 0:14:00]} 16. Nh4 {[%emt 0:04:17]} g5 {[%emt 0:04:37]} 17. Nf5 {[%emt 0:03:41]} Nxf5 {[%emt 0:09:01]} 18. exf5 {[%emt 0:00:22]} Bxf5 {[%emt 0:00:10]} 19. Rfc1 {[%emt 0:02:26]} Be6 {[%emt 0:01:34]} 20. Qb5 {[%emt 0:03:30]} Bd7 {[%emt 0:06:12]} 21. Qd5 {[%emt 0:04:55]} Nd8 {[%emt 0:01:49]} 22. Qe4 {[%emt 0:02:08]} Bc6 {[%emt 0:01:01]} 23. Qg6+ {[%emt 0:02:55]} Nf7 {[%emt 0:02:24]} 24. a6 {[%emt 0:03:06]} Qd7 {[%emt 0:02:39]} 25. Nxe5 {[%emt 0:00:42]} fxe5 {[%emt 0:11:03]} 26. Rxc6 {[%emt 0:00:18]} bxc6 {[%emt 0:01:17]} 27. Bxc6 {[%emt 0:00:06]} Qxc6 {[%emt 0:02:01]} 28. Qxc6+ {[%emt 0:00:03]} Kf8 {[%emt 0:00:01]} 29. b4 {[%emt 0:01:03]} Bd6 {[%emt 0:00:27]} 30. Qd7 {[%emt 0:00:52]} Ra8 {[%emt 0:01:00]} 31. Rc1 {[%emt 0:00:20]} Kg7 {[%emt 0:00:22]} 32. Bxg5 {[%emt 0:00:32]} Rh5 {[%emt 0:00:22]} 33. Bd2 {[%emt 0:00:57]} Rah8 {[%emt 0:00:28]} 34. Qg4+ {[%emt 0:00:07]} Kf6 {[%emt 0:00:09]} 35. Qf3+ {[%emt 0:00:06]} Ke6 {[%emt 0:00:33]} 36. b5 {[%emt 0:00:10]} Rf5 {[%emt 0:01:06]} 37. Qe4 {[%emt 0:00:38]} Rb8 {[%emt 0:00:12]} 38. Qc6 {[%emt 0:01:40]} Nd8 {[%emt 0:00:57]} 39. Qc4+ {[%emt 0:00:19]} Ke7 {[%emt 0:00:37]} 40. Kg2 {[%emt 0:02:15]} Ne6 {[%emt 0:00:27]} 41. Rh1 {[%emt 0:00:11]} Rf7 {[%emt 0:01:10]} 42. Rh6 {[%emt 0:00:33]} Rf6 {[%emt 0:00:14]} 43. Rh7+ {[%emt 0:01:21]} Rf7 {[%emt 0:00:04]} 44. Rxf7+ {[%emt 0:00:53]} Kxf7 {[%emt 0:00:02]} 45. Ba5 {[%emt 0:00:54]} Bc5 {[%emt 0:00:29]} 46. Bc7 {[%emt 0:00:48]} Rg8 {[%emt 0:00:53]} 47. Bxe5 {[%emt 0:00:09]} Ke7 {[%emt 0:00:07]} 48. f4 {[%emt 0:01:08]} Rf8 {[%emt 0:00:27]} 49. g4 {[%emt 0:00:51]} 1-0

[Event "21st Dubai Open 2019"]
[Site "Dubai"]
[Date "2019.04.06"]
[Round "6.30"]
[White "Pranav Vijay"]
[Black "Dhulipalla Bala Chandra Prasa"]
[Result "1/2-1/2"]
[ECO "C77"]
[WhiteElo "2265"]
[BlackElo "2384"]
[Annotator "NA"]
[PlyCount "96"]
[EventDate "2019.04.01"]
[EventType "swiss"]
[EventCountry "UAE"]
[SourceTitle "playchess.com"]
[Source "ChessBase"]
[SourceQuality "1"]
[TimeControl "5400+30"]

1. e4 e5 {[%emt 0:01:07]} 2. Nf3 {[%emt 0:00:00]} Nc6 {[%emt 0:00:05]} 3. Bb5 {[%emt 0:00:00]} a6 {[%emt 0:00:05]} 4. Ba4 {[%emt 0:00:00]} Nf6 {[%emt 0:00:13]} 5. Bxc6 {[%emt 0:00:00]} dxc6 {[%emt 0:00:16]} 6. d3 {[%emt 0:00:00]} Nd7 {[%emt 0:00:58]} 7. Nbd2 {[%emt 0:00:18]} Be7 {[%emt 0:02:32]} 8. Nc4 {[%emt 0:00:34]} f6 {[%emt 0:01:08]} 9. O-O {[%emt 0:01:50]} Nc5 {[%emt 0:03:16]} 10. h3 {[%emt 0:02:46]} Be6 {[%emt 0:03:34]} 11. Ne3 {[%emt 0:01:36]} Qd7 {[%emt 0:06:48]} 12. a4 {[%emt 0:04:41]} a5 {[%emt 0:03:46]} 13. b3 {[%emt 0:01:19]} Bf7 {[%emt 0:21:06]} 14. Nf5 {[%emt 0:01:33]} Ne6 {[%emt 0:02:37]} 15. Bb2 {[%emt 0:03:03]} c5 {[%emt 0:04:44]} 16. Nd2 {[%emt 0:09:07]} O-O-O {[%emt 0:06:12]} 17. Nc4 {[%emt 0:05:59]} b6 {[%emt 0:00:05]} 18. Qf3 {[%emt 0:01:05]} Bg6 {[%emt 0:07:02]} 19. Qg4 {[%emt 0:06:15]} Kb7 {[%emt 0:02:23]} 20. Nfe3 {[%emt 0:00:53]} Nf4 {[%emt 0:04:19]} 21. Qxd7 {[%emt 0:01:08]} Rxd7 {[%emt 0:00:01]} 22. g3 {[%emt 0:00:25]} Ne2+ {[%emt 0:07:03]} 23. Kg2 {[%emt 0:00:55]} Re8 {[%emt 0:02:47]} 24. Rae1 {[%emt 0:02:48]} Nd4 {[%emt 0:00:23]} 25. f4 {[%emt 0:02:15]} exf4 {[%emt 0:00:24]} 26. gxf4 {[%emt 0:01:02]} Bd8 {[%emt 0:00:57]} 27. Bxd4 {[%emt 0:05:29]} cxd4 {[%emt 0:00:27]} 28. Ng4 {[%emt 0:00:12]} c6 {[%emt 0:02:27]} 29. e5 {[%emt 0:01:51]} fxe5 {[%emt 0:01:17]} 30. Ngxe5 {[%emt 0:00:26]} Rd5 {[%emt 0:01:33]} 31. Nxg6 {[%emt 0:00:17]} Rxe1 {[%emt 0:00:05]} 32. Rxe1 {[%emt 0:00:05]} hxg6 {[%emt 0:00:05]} 33. Re5 {[%emt 0:08:36]} Bc7 {[%emt 0:07:41]} 34. Rxd5 {[%emt 0:02:48]} cxd5 {[%emt 0:00:02]} 35. Ne5 {[%emt 0:00:07]} g5 {[%emt 0:00:01]} 36. Nf3 {[%emt 0:00:07]} gxf4 {[%emt 0:01:21]} 37. Nxd4 {[%emt 0:00:19]} Be5 {[%emt 0:01:06]} 38. Ne6 {[%emt 0:00:14]} Bf6 {[%emt 0:01:23]} 39. Nxf4 {[%emt 0:00:34]} Kc6 {[%emt 0:00:01]} 40. c4 {[%emt 0:02:15]} dxc4 {[%emt 0:02:46]} 41. dxc4 {[%emt 0:01:00]} Kc5 {[%emt 0:00:27]} 42. Nd5 {[%emt 0:00:31]} Bd8 {[%emt 0:00:32]} 43. Kf3 {[%emt 0:02:15]} Kd4 {[%emt 0:00:21]} 44. Ke2 {[%emt 0:00:12]} g5 {[%emt 0:00:30]} 45. Kd2 {[%emt 0:06:08]} Ke4 {[%emt 0:00:43]} 46. Ke2 {[%emt 0:02:43]} Kd4 {[%emt 0:00:10]} 47. Kd2 {[%emt 0:00:34]} Ke4 {[%emt 0:00:12]} 48. Ke2 {[%emt 0:02:29]} Ke5 1/2-1/2

[Event "21st Dubai Open 2019"]
[Site "Dubai"]
[Date "2019.04.06"]
[Round "6.31"]
[White "Rathnakaran, K.."]
[Black "Blagojevic, Tijana"]
[Result "1-0"]
[ECO "C65"]
[WhiteElo "2351"]
[BlackElo "2216"]
[Annotator "NA"]
[PlyCount "111"]
[EventDate "2019.04.01"]
[EventType "swiss"]
[EventCountry "UAE"]
[SourceTitle "playchess.com"]
[Source "ChessBase"]
[SourceQuality "1"]
[TimeControl "5400+30"]

1. e4 {[%emt 0:00:00]} e5 {[%emt 0:00:00]} 2. Nf3 {[%emt 0:00:00]} Nc6 {[%emt 0:00:00]} 3. Bb5 {[%emt 0:00:00]} Nf6 {[%emt 0:00:00]} 4. Qe2 {[%emt 0:00:00]} Bc5 {[%emt 0:00:11]} 5. c3 {[%emt 0:00:00]} O-O {[%emt 0:00:40]} 6. d3 {[%emt 0:00:17]} Re8 {[%emt 0:00:22]} 7. Bg5 {[%emt 0:00:15]} a6 {[%emt 0:03:55]} 8. Ba4 {[%emt 0:00:08]} b5 {[%emt 0:01:29]} 9. Bc2 {[%emt 0:00:07]} h6 {[%emt 0:01:06]} 10. Bh4 {[%emt 0:01:10]} Be7 {[%emt 0:00:34]} 11. Nbd2 {[%emt 0:00:13]} Nh5 {[%emt 0:03:42]} 12. Bxe7 {[%emt 0:00:09]} Qxe7 {[%emt 0:01:11]} 13. g3 {[%emt 0:00:14]} d6 {[%emt 0:03:01]} 14. Nf1 {[%emt 0:00:08]} Qf6 {[%emt 0:11:03]} 15. Ne3 {[%emt 0:00:51]} Ne7 {[%emt 0:00:49]} 16. Nh4 {[%emt 0:01:45]} Nf4 {[%emt 0:01:31]} 17. gxf4 {[%emt 0:00:09]} Qxh4 {[%emt 0:01:04]} 18. f5 {[%emt 0:00:16]} g6 {[%emt 0:04:14]} 19. Rg1 {[%emt 0:00:50]} Kh8 {[%emt 0:03:55]} 20. Qf3 {[%emt 0:01:55]} Qf4 {[%emt 0:04:07]} 21. Qe2 {[%emt 0:02:07]} Qh4 {[%emt 0:04:48]} 22. Bb3 {[%emt 0:16:45]} gxf5 {[%emt 0:16:14]} 23. exf5 {[%emt 0:00:13]} Nxf5 {[%emt 0:03:01]} 24. Bxf7 {[%emt 0:13:15]} Rf8 {[%emt 0:00:36]} 25. Bd5 {[%emt 0:00:53]} c6 {[%emt 0:04:22]} 26. Bxc6 {[%emt 0:01:46]} Ra7 {[%emt 0:00:01]} 27. O-O-O {[%emt 0:07:54]} Ne7 {[%emt 0:07:07]} 28. Be4 {[%emt 0:03:30]} Be6 {[%emt 0:02:34]} 29. Rg3 {[%emt 0:01:02]} d5 {[%emt 0:01:53]} 30. Ng2 {[%emt 0:02:17]} Qf6 {[%emt 0:00:51]} 31. Qe3 {[%emt 0:01:00]} Rc7 {[%emt 0:01:37]} 32. Bg6 {[%emt 0:01:26]} Nxg6 {[%emt 0:06:14]} 33. Qxh6+ {[%emt 0:00:11]} Rh7 {[%emt 0:00:01]} 34. Qxg6 {[%emt 0:00:07]} Rxh2 {[%emt 0:00:26]} 35. Rd2 {[%emt 0:03:27]} Qxg6 {[%emt 0:03:27]} 36. Rxg6 {[%emt 0:01:22]} Bf5 {[%emt 0:00:47]} 37. Rg3 {[%emt 0:02:09]} e4 {[%emt 0:03:36]} 38. d4 {[%emt 0:02:58]} Bh3 {[%emt 0:03:06]} 39. Ne3 {[%emt 0:01:28]} Be6 {[%emt 0:00:12]} 40. Rg6 {[%emt 0:01:44]} Bg8 {[%emt 0:00:32]} 41. Nd1 {[%emt 0:01:24]} Ra8 {[%emt 0:02:25]} 42. f4 {[%emt 0:01:38]} Rh4 {[%emt 0:00:57]} 43. Ne3 {[%emt 0:01:08]} Rh3 {[%emt 0:02:03]} 44. Re2 {[%emt 0:00:26]} Rf8 {[%emt 0:00:44]} 45. f5 {[%emt 0:00:14]} Bh7 {[%emt 0:00:22]} 46. Rg5 {[%emt 0:00:19]} Rf3 {[%emt 0:00:51]} 47. Kd2 {[%emt 0:00:13]} Rg8 {[%emt 0:00:29]} 48. Rh5 {[%emt 0:00:07]} Rgg3 {[%emt 0:00:23]} 49. Rh6 {[%emt 0:08:08]} Kg7 {[%emt 0:00:06]} 50. Rxa6 {[%emt 0:00:05]} Bxf5 {[%emt 0:00:06]} 51. Rd6 {[%emt 0:00:04]} Bh3 {[%emt 0:01:17]} 52. Rxd5 {[%emt 0:00:14]} Bf1 {[%emt 0:01:22]} 53. Nxf1 {[%emt 0:00:14]} Rxf1 {[%emt 0:00:10]} 54. Rxe4 {[%emt 0:00:13]} Rgg1 {[%emt 0:00:40]} 55. Rxb5 {[%emt 0:00:21]} Rc1 {[%emt 0:00:03]} 56. Rg4+ {[%emt 0:00:20]} 1-0

[Event "21st Dubai Open 2019"]
[Site "Dubai"]
[Date "2019.04.06"]
[Round "6.32"]
[White "Concio, Michael Jr."]
[Black "Sidhant, Mohapatra"]
[Result "0-1"]
[ECO "A37"]
[WhiteElo "2071"]
[BlackElo "2348"]
[Annotator "NA"]
[PlyCount "88"]
[EventDate "2019.04.01"]
[EventType "swiss"]
[EventCountry "UAE"]
[SourceTitle "playchess.com"]
[Source "ChessBase"]
[SourceQuality "1"]
[TimeControl "5400+30"]

1. c4 {[%emt 0:00:00]} c5 {[%emt 0:01:32]} 2. Nf3 {[%emt 0:00:01]} Nc6 {[%emt 0:00:31]} 3. Nc3 {[%emt 0:00:30]} g6 {[%emt 0:00:09]} 4. g3 {[%emt 0:00:12]} Bg7 {[%emt 0:00:05]} 5. Bg2 {[%emt 0:00:08]} e6 {[%emt 0:00:10]} 6. O-O {[%emt 0:00:06]} Nge7 {[%emt 0:00:07]} 7. b3 {[%emt 0:01:14]} O-O {[%emt 0:00:41]} 8. Bb2 {[%emt 0:00:27]} d5 {[%emt 0:02:21]} 9. Na4 {[%emt 0:00:32]} Bxb2 {[%emt 0:03:34]} 10. Nxb2 {[%emt 0:00:01]} d4 {[%emt 0:00:29]} 11. Nd3 {[%emt 0:01:48]} Qd6 {[%emt 0:00:06]} 12. Ng5 {[%emt 0:02:57]} f5 {[%emt 0:00:06]} 13. f4 {[%emt 0:00:03]} e5 {[%emt 0:00:06]} 14. e4 {[%emt 0:05:58]} dxe3 {[%emt 0:01:34]} 15. dxe3 {[%emt 0:00:12]} e4 {[%emt 0:00:12]} 16. Nb2 {[%emt 0:06:52]} Qf6 {[%emt 0:02:08]} 17. Qe2 {[%emt 0:00:43]} h6 {[%emt 0:02:53]} 18. Nh3 {[%emt 0:00:04]} Be6 {[%emt 0:00:08]} 19. Rfd1 {[%emt 0:00:16]} Rad8 {[%emt 0:03:53]} 20. Nf2 {[%emt 0:04:24]} Nb4 {[%emt 0:03:32]} 21. a3 {[%emt 0:00:22]} Nbc6 {[%emt 0:00:03]} 22. Qc2 {[%emt 0:00:59]} Nc8 {[%emt 0:00:12]} 23. Rxd8 {[%emt 0:00:25]} Rxd8 {[%emt 0:00:05]} 24. Rd1 {[%emt 0:00:03]} Nd6 {[%emt 0:16:35]} 25. Bf1 {[%emt 0:05:21]} g5 {[%emt 0:09:50]} 26. Na4 {[%emt 0:13:05]} b6 {[%emt 0:00:24]} 27. Nc3 {[%emt 0:00:49]} gxf4 {[%emt 0:07:06]} 28. gxf4 {[%emt 0:00:02]} Kh7 {[%emt 0:00:23]} 29. Kh1 {[%emt 0:03:22]} Bf7 {[%emt 0:04:15]} 30. Nd5 {[%emt 0:24:45]} Qg7 {[%emt 0:02:51]} 31. Nh3 {[%emt 0:07:01]} Rg8 {[%emt 0:04:14]} 32. Bg2 {[%emt 0:01:41]} Bh5 {[%emt 0:01:52]} 33. Rg1 {[%emt 0:00:04]} Bg4 {[%emt 0:00:22]} 34. Rf1 {[%emt 0:09:23]} Nc8 {[%emt 0:09:38]} 35. Qc3 {[%emt 0:04:24]} Qxc3 {[%emt 0:00:12]} 36. Nxc3 {[%emt 0:00:01]} N8e7 {[%emt 0:02:30]} 37. Nf2 {[%emt 0:03:26]} Bh5 {[%emt 0:00:17]} 38. Rb1 {[%emt 0:00:08]} Na5 {[%emt 0:03:13]} 39. h3 {[%emt 0:05:03]} Ng6 {[%emt 0:07:41]} 40. Nd5 {[%emt 0:00:35]} Kg7 {[%emt 0:00:06]} 41. b4 {[%emt 0:01:43]} Nxc4 {[%emt 0:00:31]} 42. bxc5 {[%emt 0:00:01]} Nh4 {[%emt 0:00:19]} 43. Rc1 {[%emt 0:01:01]} Kf7 {[%emt 0:02:03]} 44. Nxe4 {[%emt 0:01:16]} fxe4 {[%emt 0:03:40]} 0-1

[Event "21st Dubai Open 2019"]
[Site "Dubai"]
[Date "2019.04.06"]
[Round "6.33"]
[White "Quizon, Daniel"]
[Black "Aaryan Varshney"]
[Result "1-0"]
[ECO "B34"]
[WhiteElo "2340"]
[BlackElo "2199"]
[Annotator "NA"]
[PlyCount "91"]
[EventDate "2019.04.01"]
[EventType "swiss"]
[EventCountry "UAE"]
[SourceTitle "playchess.com"]
[Source "ChessBase"]
[SourceQuality "1"]
[TimeControl "5400+30"]

1. e4 {[%emt 0:00:00]} c5 {[%emt 0:03:54]} 2. Nc3 {[%emt 0:00:11]} Nc6 {[%emt 0:00:04]} 3. Nge2 {[%emt 0:00:10]} g6 {[%emt 0:00:13]} 4. d4 {[%emt 0:00:37]} cxd4 {[%emt 0:00:04]} 5. Nxd4 {[%emt 0:00:06]} Bg7 {[%emt 0:00:10]} 6. Be3 {[%emt 0:00:07]} Nf6 {[%emt 0:00:05]} 7. Nxc6 {[%emt 0:00:58]} bxc6 {[%emt 0:00:05]} 8. e5 {[%emt 0:00:05]} Ng8 {[%emt 0:00:04]} 9. Bd4 {[%emt 0:00:08]} f6 {[%emt 0:00:21]} 10. exf6 {[%emt 0:04:48]} Nxf6 {[%emt 0:00:11]} 11. Bc4 {[%emt 0:02:38]} d5 {[%emt 0:00:15]} 12. Bb3 {[%emt 0:00:09]} Qd6 {[%emt 0:00:04]} 13. Qe2 {[%emt 0:03:55]} O-O {[%emt 0:00:10]} 14. O-O-O {[%emt 0:00:56]} Nd7 {[%emt 0:00:11]} 15. Kb1 {[%emt 0:09:08]} Bxd4 {[%emt 0:10:23]} 16. Rxd4 {[%emt 0:00:08]} Kh8 {[%emt 0:00:52]} 17. h4 {[%emt 0:12:09]} e5 {[%emt 0:02:17]} 18. Rdd1 {[%emt 0:00:42]} Nf6 {[%emt 0:01:18]} 19. f3 {[%emt 0:00:20]} h5 {[%emt 0:08:52]} 20. Rde1 {[%emt 0:04:11]} Re8 {[%emt 0:01:55]} 21. Qd2 {[%emt 0:00:28]} Kg7 {[%emt 0:01:43]} 22. g4 {[%emt 0:11:48]} hxg4 {[%emt 0:10:39]} 23. h5 {[%emt 0:00:39]} Bf5 {[%emt 0:06:31]} 24. fxg4 {[%emt 0:05:19]} Nxg4 {[%emt 0:02:33]} 25. Ne4 {[%emt 0:10:46]} Bxe4 {[%emt 0:06:08]} 26. Rxe4 {[%emt 0:00:35]} Nf6 {[%emt 0:01:54]} 27. hxg6 {[%emt 0:09:51]} Kxg6 {[%emt 0:34:47]} 28. Reh4 {[%emt 0:03:25]} Rg8 {[%emt 0:00:19]} 29. Rh7 {[%emt 0:00:49]} Kf5 {[%emt 0:01:05]} 30. Qf2+ {[%emt 0:00:21]} Ke6 {[%emt 0:00:24]} 31. Rf1 {[%emt 0:00:18]} Qf8 {[%emt 0:03:44]} 32. Qf5+ {[%emt 0:00:21]} Kd6 {[%emt 0:00:04]} 33. Qxf6+ {[%emt 0:00:23]} Qxf6 {[%emt 0:00:03]} 34. Rxf6+ {[%emt 0:00:04]} Kc5 {[%emt 0:00:03]} 35. a3 {[%emt 0:00:47]} e4 {[%emt 0:00:03]} 36. Rhh6 {[%emt 0:00:39]} e3 {[%emt 0:00:12]} 37. Rxc6+ {[%emt 0:00:36]} Kd4 {[%emt 0:00:02]} 38. Rh4+ {[%emt 0:00:42]} Ke5 {[%emt 0:00:02]} 39. Rh5+ {[%emt 0:00:07]} Kf4 {[%emt 0:00:10]} 40. Rf6+ {[%emt 0:00:21]} Kg4 {[%emt 0:00:10]} 41. Re5 {[%emt 0:00:19]} Rae8 {[%emt 0:00:08]} 42. Rfe6 {[%emt 0:00:10]} Rxe6 {[%emt 0:00:03]} 43. Rxe6 {[%emt 0:00:05]} Kf3 {[%emt 0:00:23]} 44. Bxd5+ {[%emt 0:00:07]} Ke2 {[%emt 0:00:03]} 45. Rxe3+ {[%emt 0:00:09]} Kxe3 {[%emt 0:00:02]} 46. Bxg8 {[%emt 0:00:07]} 1-0